[Event "1000GM Memorial Day NY IM-C 2023"]
[Site "New York"]
[Date "2023.05.29"]
[Round "8.3"]
[White "Zumsande, Martin"]
[Black "Nemeth, Miklos"]
[Result "1/2-1/2"]
[ECO "A07"]
[WhiteElo "2454"]
[BlackElo "2452"]
[Annotator "TA"]
[PlyCount "143"]
[EventDate "2023.05.23"]
[EventType "tourn"]
[EventCountry "USA"]
[SourceTitle "playchess.com"]
[Source "ChessBase"]
[SourceQuality "1"]
[TimeControl "5400+30"]

{[%evp 12,143,8,10,18,22,31,34,72,61,75,26,57,19,21,-5,12,-10,-8,-8,-12,-5,-16,-16,-19,-10,-17,-13,0,-17,0,0,0,0,0,0,0,-14,-17,-54,0,0,0,0,0,0,0,0,0,0,0,0,0,0,0,0,0,0,0,0,0,0,0,0,0,0,0,0,0,0,0,0,8,5,8,8,8,8,9,9,10,23,231,231,317,317,317,317,317,317,442,442,442,442,442,442,442,442,442,442,442,442,442,442,442,0,442,442,442,442,442,311,311,442,352,352,311,311,311,311,311,311,311,0,311,311,311,311,311,311,311,311,311,311]} 1. Nf3 {[%emt 0:00:04]} d5 {[%emt 0:02:38]} 2. g3 {[%emt 0:00:10]} g6 {[%emt 0:00:05]} 3. Bg2 {[%emt 0:00:05]} Bg7 {[%emt 0:00:05]} 4. O-O {[%emt 0:00:11]} e5 {[%emt 0:00:54]} 5. d3 {[%emt 0:00:09]} Ne7 {[%emt 0:02:12]} 6. e4 {[%emt 0:00:53]} dxe4 {[%emt 0:06:07]} 7. dxe4 {[%emt 0:00:07]} Qxd1 {[%emt 0:00:45] A07: Réti Opening: New York and Capablanca Systems.} 8. Rxd1 {[%emt 0:00:06]} h6 {[%emt 0:00:52]} 9. Nc3 {[%emt 0:01:32][%cal Bb1c3,Bc3a4,Ba4b2,Bb2d3][%mdl 32]} c6 {[%emt 0:04:45] [#] White is slightly better.} 10. b3 $146 {[%emt 0:06:44] White has more active pieces.} ({Predecessor:} 10. Be3 Nd7 11. Rd2 O-O 12. Rad1 Nb6 13. Bxb6 axb6 14. Rd8 Be6 15. Rxf8+ Kxf8 16. Na4 {0-1 Ehemann,P (1787)-Marth,J (2075) Bad Zwesten op 7th 2003 (7)}) 10... Be6 {[%emt 0:04:34]} 11. Ba3 {[%emt 0:03:34]} (11. Be3 $16) 11... Nd7 $11 {[%emt 0:03:42]} 12. Na4 {[%emt 0:02:36]} Nc8 {[%emt 0:07:04]} 13. Rd2 {[%emt 0:05:23]} Ncb6 {[%emt 0:07:32]} 14. Nb2 {[%emt 0:00:38]} Bf8 {[%emt 0:04:06]} 15. Bxf8 {[%emt 0:05:07]} Rxf8 {[%emt 0:01:51]} 16. Nd3 {[%emt 0:01:54]} f6 {[%emt 0:00:25]} 17. Nh4 {[%emt 0:01:18]} g5 {[%emt 0:01:47]} 18. Nf5 {[%emt 0:00:14]} Bxf5 {[%emt 0:00:47]} 19. exf5 {[%emt 0:00:07]} O-O-O {[%emt 0:00:59]} 20. Rad1 {[%emt 0:00:11]} Rfe8 {[%emt 0:04:29]} 21. Be4 {[%emt 0:07:01]} Kc7 {[%emt 0:04:29]} 22. f3 {[%emt 0:07:00]} h5 {[%emt 0:05:06]} 23. c4 {[%emt 0:03:57]} a5 {[%emt 0:02:07]} 24. Kf1 {[%emt 0:04:37]} Nc8 {[%emt 0:02:27]} 25. c5 {[%emt 0:03:57]} Ne7 {[%emt 0:02:44]} ({Black should try} 25... Na7 $15) 26. a3 {[%emt 0:01:44]} Nb8 {[%emt 0:03:14]} 27. Nb2 {[%emt 0:04:22]} Na6 {[%emt 0:01:16]} 28. Na4 {[%emt 0:03:09]} (28. Rxd8 {simplifies} Rxd8 29. Rxd8 Kxd8 30. Na4) 28... Rxd2 {[%emt 0:01:10]} 29. Rxd2 {[%emt 0:00:05]} Rd8 {[%emt 0:00:07]} 30. Rxd8 {[%emt 0:01:39]} Kxd8 {[%emt 0:00:02][%mdl 4096] Endgame KBN-KNN} 31. Bd3 {[%emt 0:01:26]} Nb8 {[%emt 0:05:25]} 32. Ke2 {[%emt 0:04:48]} Nd7 {[%emt 0:02:08]} 33. Kd2 {[%emt 0:01:47]} Kc7 {[%emt 0:02:29]} 34. b4 {[%emt 0:07:26]} axb4 {[%emt 0:01:27]} 35. axb4 {[%emt 0:00:05]} b6 {[%emt 0:04:46]} 36. cxb6+ {[%emt 0:05:33]} Nxb6 {[%emt 0:00:05]} 37. Nc3 {[%emt 0:03:12]} Nbd5 {[%emt 0:06:08]} 38. Ne4 $1 {[%emt 0:00:08]} Nxf5 {[%emt 0:03:20] Hoping for ...Nd4.} 39. Nxf6 $1 {[%emt 0:00:45][%mdl 64] [#] Discovered Attack} Nd4 {[%emt 0:02:03]} 40. Nxd5+ {[%emt 0:01:42]} cxd5 {[%emt 0:00:01] KB-KN} 41. Ke3 {[%emt 0:00:12]} Ne6 {[%emt 0:02:25]} 42. Bf5 {[%emt 0:00:39]} Ng7 {[%emt 0:01:42]} 43. Bg6 {[%emt 0:00:10] Strongly threatening f4.} h4 {[%emt 0:00:32]} 44. gxh4 {[%emt 0:00:24]} gxh4 {[%emt 0:00:02]} 45. f4 {[%emt 0:00:25]} exf4+ {[%emt 0:00:31]} 46. Kxf4 {[%emt 0:00:05] aiming for Kg5.} Kc6 $2 {[%emt 0:01:07]} (46... Ne6+ $1 $11 47. Kg4 d4) 47. Ke5 $18 {[%emt 0:00:16] Kf6 would be deadly.} Kb5 {[%emt 0:00:20]} 48. Kxd5 {[%emt 0:03:06]} ({Don't take} 48. Kf6 Kxb4 49. Kxg7 Kc5 $18) 48... Kxb4 {[%emt 0:00:08]} 49. Ke5 {[%emt 0:00:04]} Kc5 {[%emt 0:00:39]} 50. Kf6 {[%emt 0:00:09]} Kd6 {[%emt 0:00:12][%cal Og7f5]} 51. Kxg7 {[%emt 0:00:11] KB-KP} Ke7 {[%emt 0:00:25]} 52. Bf7 {[%emt 0:00:10]} Kd7 {[%emt 0:00:44]} 53. Kf6 {[%emt 0:00:09]} Kd8 {[%emt 0:00:34]} 54. Bb3 {[%emt 0:00:47]} Ke8 {[%emt 0:00:07]} 55. Bc4 {[%emt 0:00:14]} Kd7 {[%emt 0:00:25]} 56. Bd3 {[%emt 0:02:51]} Ke8 {[%emt 0:00:40]} 57. Bg6+ {[%emt 0:00:10]} Kd7 {[%emt 0:00:15]} 58. Bf7 {[%emt 0:00:40]} Kd8 {[%emt 0:00:16]} 59. Ke6 {[%emt 0:03:00]} Kc7 {[%emt 0:00:01]} 60. Be8 {[%emt 0:00:12]} Kd8 {[%emt 0:00:08]} 61. Kf7 {[%emt 0:00:21]} Kc7 {[%emt 0:00:18]} 62. Ke7 {[%emt 0:00:05]} (62. Kg6 $142) 62... Kc8 {[%emt 0:00:48]} 63. Bb5 {[%emt 0:01:39]} Kc7 {[%emt 0:00:05]} 64. Ba4 {[%emt 0:00:04]} Kc8 {[%emt 0:00:36] [#]} 65. Kf6 $1 {[%emt 0:02:00]} Kd8 {[%emt 0:00:01]} 66. Bb5 {[%emt 0:00:10]} Kc7 {[%emt 0:00:32]} 67. Bc4 $2 {[%emt 0:03:13]} (67. Kg5 $18 Kd8 68. Kf6 (68. Kxh4 Ke7 $11)) 67... Kd8 $2 {[%emt 0:00:17][%mdl 8192]} (67... Kd7 $11 {and Black stays safe.} 68. Bb3 Ke8) 68. Bf7 {[%emt 0:04:23] White has a decisive advantage.} Kd7 {[%emt 0:00:01]} 69. Bg6 {[%emt 0:00:13]} Kd8 {[%emt 0:00:26]} 70. Bh5 {[%emt 0:02:45]} Kd7 {[%emt 0:00:05]} 71. Bg4+ {[%emt 0:00:05]} Kd8 {[%emt 0:00:06]} 72. Kg5 {[%emt 0:00:36][%mdl 32768] Weighted Error Value: White=0.12 (very precise) /Black=0.14 (very precise) . An unexpected result.} 1/2-1/2

[Event "1000GM Memorial Day NY IM-C 2023"]
[Site "New York"]
[Date "2023.05.29"]
[Round "8.4"]
[White "Lee, Megan"]
[Black "Poliannikov, Danila"]
[Result "1-0"]
[ECO "C82"]
[WhiteElo "2261"]
[BlackElo "2278"]
[Annotator "TA"]
[PlyCount "67"]
[EventDate "2023.05.23"]
[EventType "tourn"]
[EventCountry "USA"]
[SourceTitle "playchess.com"]
[Source "ChessBase"]
[SourceQuality "1"]
[TimeControl "5400+30"]

{[%evp 23,67,0,0,0,0,0,0,0,2,0,5,0,0,0,0,0,0,0,0,0,0,0,26,25,19,4,18,0,30,0,0,9,0,0,569,565,685,670,730,730,1077,1114,1047,931,1235,1374]} 1. e4 {[%emt 0:07:23]} e5 {[%emt 0:00:06]} 2. Nf3 {[%emt 0:00:05]} Nc6 {[%emt 0:00:04]} 3. Bb5 {[%emt 0:00:06]} a6 {[%emt 0:00:04]} 4. Ba4 {[%emt 0:00:04]} Nf6 {[%emt 0:00:04]} 5. O-O {[%emt 0:00:15]} Nxe4 {[%emt 0:00:25]} 6. d4 {[%emt 0:00:40]} b5 {[%emt 0:00:05]} 7. Bb3 {[%emt 0:00:03]} d5 {[%emt 0:00:04]} 8. dxe5 {[%emt 0:00:28]} Be6 {[%emt 0:00:04]} 9. c3 {[%emt 0:01:20]} Bc5 {[%emt 0:00:07]} 10. Bc2 {[%emt 0:01:32]} O-O {[%emt 0:02:40]} 11. Nbd2 {[%emt 0:00:15]} Nxf2 {[%emt 0:00:11]} 12. Rxf2 {[%emt 0:00:04]} f6 {[%emt 0:00:04]} 13. Nf1 {[%emt 0:00:06] [#] Strongly threatening Be3. C82: Open Ruy Lopez: 9 c3 without 9...Be7.} Bxf2+ {[%emt 0:00:09]} 14. Kxf2 {[%emt 0:00:02]} fxe5 {[%emt 0:00:09] Threatens to win with ...e4.} 15. Kg1 {[%emt 0:00:07][%cal Oc2h7] Black must now prevent Bxh7+! The position is equal.} Qd6 {[%emt 0:01:52]} 16. Be3 {[%emt 0:00:38]} e4 $132 {[%emt 0:08:16][%mdl 2048] Black has counterplay} 17. Nd4 {[%emt 0:08:16]} Ne5 {[%emt 0:00:42]} 18. Nxe6 {[%emt 0:06:03]} Qxe6 {[%emt 0:01:42] [#]} 19. Bc5 $146 {[%emt 0:01:36]} ({Predecessor:} 19. Bd4 Rae8 20. Ne3 c6 21. a4 Qg6 22. Bxe5 Rxe5 23. Qd4 Qg5 24. b4 Re6 25. Re1 {0-1 Warakomska,A (2236)-Harshini,A (2116) Suwalki Warakomska Memorial 6th 2022 (4)}) 19... Rf6 {[%emt 0:05:18]} 20. a4 {[%emt 0:02:50] [#] axb5 is the strong threat.} Re8 {[%emt 0:01:41]} 21. Ng3 {[%emt 0:12:40]} c6 {[%emt 0:16:27]} 22. Qe2 {[%emt 0:22:18]} Nd7 {[%emt 0:06:42]} 23. Bd4 {[%emt 0:00:52][%mdl 1024] White has compensation. This pair of bishops is nice.} Rf7 {[%emt 0:00:21]} 24. axb5 {[%emt 0:01:29]} axb5 {[%emt 0:00:20]} 25. Ra6 {[%emt 0:00:35]} Qh6 {[%emt 0:11:37]} 26. Be3 {[%emt 0:01:25]} (26. Qe3 $5 {[%cal Re3h6]}) 26... Qd6 {[%emt 0:00:36]} 27. b4 {[%emt 0:03:39]} Ne5 {[%emt 0:04:48]} 28. Bb3 {[%emt 0:03:52]} Qg6 $2 {[%emt 0:06:49][%mdl 8192]} (28... Qe6 $11 {and Black has nothing to worry.}) 29. Bxd5 $18 {[%emt 0:01:17] White is clearly winning.} cxd5 {[%emt 0:06:26]} 30. Rxg6 {[%emt 0:00:05]} hxg6 {[%emt 0:00:02]} 31. Qxb5 {[%emt 0:00:53]} Ra8 {[%emt 0:00:04]} 32. h3 {[%emt 0:00:44]} (32. Qxd5 {is a self mate.} Ra1+) 32... Nc4 {[%emt 0:05:17]} 33. Bd4 {[%emt 0:00:55]} ({Less strong is} 33. Qxd5 Ra1+ 34. Kh2 Nxe3 $18) 33... e3 {[%emt 0:03:48]} 34. Qxd5 {[%emt 0:00:44] Weighted Error Value: White=0.06 (flawless) /Black=0.46} 1-0

[Event "1000GM Memorial Day NY IM-C 2023"]
[Site "New York"]
[Date "2023.05.29"]
[Round "8.5"]
[White "Reiss, Aiden"]
[Black "Paragua, Mark"]
[Result "0-1"]
[ECO "B11"]
[WhiteElo "2138"]
[BlackElo "2442"]
[Annotator "TA"]
[PlyCount "84"]
[EventDate "2023.05.23"]
[EventType "tourn"]
[EventCountry "USA"]
[SourceTitle "playchess.com"]
[Source "ChessBase"]
[SourceQuality "1"]
[TimeControl "5400+30"]

{[%evp 10,84,22,12,30,12,27,0,0,-3,-15,-8,0,0,0,0,18,0,0,0,47,0,0,-24,-11,-140,-137,-185,-191,-171,-14,-17,-29,-40,-40,-192,-201,-197,-210,-201,-202,-1109,-1109,-1097,-1097,-1065,-1076,-1061,-1062,-1044,-1044,-977,-970,-1056,-1050,-986,-535,-1156,-1120,-1073,-615,-587,-583,-556,-486,-552,-506,-29995,-29993,-849,-903,-879,-840,-899,-860,-29997,-945]} 1. e4 {[%emt 0:02:28]} c6 {[%emt 0:00:53]} 2. Nf3 {[%emt 0:00:09]} d5 {[%emt 0:00:06]} 3. Nc3 {[%emt 0:00:04]} Bg4 {[%emt 0:00:11]} 4. h3 {[%emt 0:00:03]} Bxf3 {[%emt 0:00:08]} 5. Qxf3 {[%emt 0:00:02]} e6 {[%emt 0:00:14]} 6. Be2 {[%emt 0:00:02]} Bc5 {[%emt 0:00:51] B11: Caro-Kann: Two Knights Variation.} 7. O-O {[%emt 0:00:09]} Nd7 {[%emt 0:00:26]} 8. d3 {[%emt 0:08:00]} Ne7 {[%emt 0:01:45] The position is equal.} 9. Qg3 {[%emt 0:02:15]} O-O {[%emt 0:01:11]} 10. h4 {[%emt 0:01:53] [#]} Kh8 $146 {[%emt 0:02:22]} ({Predecessor:} 10... b5 11. h5 Bd4 12. Bg5 Be5 13. Qh4 f6 14. Bd2 f5 15. Bg5 Bf6 16. Bxf6 Rxf6 17. exd5 exd5 {1-0 Guo,A (2470)-Wang,T (2336) Charlotte CCCSA Summer GM-B 2021 (2)}) 11. h5 {[%emt 0:02:01]} h6 {[%emt 0:06:03]} 12. Bf4 {[%emt 0:03:43]} f5 {[%emt 0:13:04][%cal Oe6e5,Bf7f5,Bf5f4,Bf4f3,Bf3e2][%mdl 32]} 13. Na4 {[%emt 0:02:56] Hoping for Nxc5.} (13. Bc7 $5 {[%cal Rc7d8]} Qe8 14. Na4 $11) 13... Bd4 {[%emt 0:05:51]} 14. c3 {[%emt 0:01:26]} Bf6 {[%emt 0:02:35]} (14... e5 $11 15. Bd2 Bb6) 15. Bc7 {[%emt 0:07:35]} (15. e5 $1 $14 Bg5 16. Bxg5 hxg5 17. d4 (17. Qxg5 $2 b5 $19)) 15... Qe8 $11 {[%emt 0:01:28]} 16. e5 {[%emt 0:03:12]} f4 $1 {[%emt 0:00:56]} (16... Bg5 17. f4 Bxf4 18. Qxf4 $16 (18. Rxf4 b5 $16)) 17. Qg4 {[%emt 0:00:07]} (17. Qxf4 $2 Bxe5 $19) (17. Qh3 $1 $11 {remains equal.} Bxe5 18. Bxe5 Nxe5 19. Nc5) 17... Bxe5 $17 {[%emt 0:01:38]} 18. Bxe5 {[%emt 0:01:29]} (18. Nc5 $17 Nf6 19. Bxe5 Nxg4 20. Bxg4) 18... Nxe5 $19 {[%emt 0:00:04]} 19. Qxe6 {[%emt 0:00:15]} Nf5 $2 {[%emt 0:03:49]} (19... Rf5 $19 {Strongly threatening ...f3.} 20. d4 f3 21. dxe5 fxe2) 20. Qxe8 $1 $11 {[%emt 0:01:19]} Raxe8 {[%emt 0:00:06][%cal Ba8e8,Be8e5,Be5g5][%mdl 32]} 21. d4 {[%emt 0:01:26]} f3 $1 $36 {[%emt 0:00:06][%mdl 2048] Black is pushing.} 22. dxe5 $2 {[%emt 0:06:36] Now White is beyond hope.} (22. gxf3 $15 Ng6 23. hxg6 Rxe2 24. Rfe1) 22... fxe2 $19 {[%emt 0:05:02]} 23. Rfe1 {[%emt 0:00:28]} Rxe5 {[%emt 0:00:29] ...Nh4 is the strong threat.} 24. Nc5 {[%emt 0:00:23][%cal Oc5d7] [#]} Nh4 $1 {[%emt 0:01:38]} 25. Nd7 $2 {[%emt 0:02:19] [#]} (25. f4 Re7 26. Rac1) 25... Nf3+ $1 {[%emt 0:02:23][%mdl 512]} 26. gxf3 {[%emt 0:00:10]} Rg5+ {[%emt 0:00:04]} 27. Kh2 {[%emt 0:00:17]} Rxh5+ {[%emt 0:00:07]} ({Weaker is} 27... Rxf3 28. Rxe2 Kh7 29. Rg1 Rxh5+ 30. Kg2 $16) 28. Kg3 {[%emt 0:00:34]} Rg5+ {[%emt 0:00:07]} 29. Kh2 {[%emt 0:01:03]} Rf4 {[%emt 0:00:05][%cal Rf4h4]} ({Less strong is} 29... Rxf3 30. Rxe2 Kh7 31. Rd1 $16) 30. Kh3 {[%emt 0:00:08] Repels Rh4+} Rxf3+ {[%emt 0:00:05]} 31. Kh4 {[%emt 0:00:43]} Rxf2 {[%emt 0:00:36][%cal Rf2h2]} 32. Kh3 {[%emt 0:00:34] Inhibits Rh2+.} Kh7 {[%emt 0:23:51]} 33. Rac1 {[%emt 0:00:46]} h5 {[%emt 0:03:27] aiming for ...Rfg2.} 34. Rc2 {[%emt 0:02:28]} Rfg2 {[%emt 0:00:51]} 35. Nf6+ {[%emt 0:01:49]} gxf6 {[%emt 0:04:04][%cal Bg7f6,Bf6f5][%mdl 32]} 36. Rcxe2 {[%emt 0:00:03][%mdl 4096] Endgame KRR-KRR} R5g3+ {[%emt 0:00:21]} 37. Kh4 {[%emt 0:00:05]} Kg6 {[%emt 0:00:43] White must now prevent ...Rg4+.} 38. Re6 {[%emt 0:01:00]} (38. Rxg2 $19 Rxg2 39. Rb1) 38... Rg4+ {[%emt 0:04:29]} (38... Rf3 $142 39. Rxf6+ {[%mdl 64] Decoy} Kxf6 40. Re6+ Kxe6 41. a4 Kf5 42. Kxh5 Rh3#) 39. Kh3 {[%emt 0:00:04]} Kg5 {[%emt 0:00:02][%csl Gg2][%cal Rg4g3]} 40. R1e3 {[%emt 0:00:31] Dodges R4g3+} f5 {[%emt 0:01:59]} 41. a4 {[%emt 0:00:22]} Rxb2 {[%emt 0:00:24] ( -> ...Rh4+)} 42. a5 {[%emt 0:00:03]} Rh4+ {[%emt 0:00:07] Weighted Error Value: White=0.60/Black=0.40} 0-1

[Event "1000GM Memorial Day NY IM-C 2023"]
[Site "New York"]
[Date "2023.05.30"]
[Round "9.1"]
[White "Paragua, Mark"]
[Black "Sazci, Bilgen"]
[Result "1-0"]
[ECO "A11"]
[WhiteElo "2442"]
[BlackElo "1827"]
[Annotator "TA"]
[PlyCount "99"]
[EventDate "2023.05.23"]
[EventType "tourn"]
[EventCountry "USA"]
[SourceTitle "playchess.com"]
[Source "ChessBase"]
[SourceQuality "1"]
[TimeControl "5400+30"]

{[%evp 15,99,-14,9,-12,25,16,33,38,32,31,60,26,39,44,95,95,108,29,33,-24,-22,-14,18,22,27,6,16,19,55,15,28,6,103,104,105,105,104,64,57,14,44,0,94,84,391,389,354,391,343,368,389,380,357,348,877,213,420,404,416,412,992,784,2129,1697,1710,1437,625,1061,12829,12829,12825,12825,12818,1226,12659,6809,12831,12831,12837,2002,12837,12836,12835,12835,12841,12841]} 1. Nf3 {[%emt 0:00:04]} Nf6 {[%emt 0:00:07]} 2. g3 {[%emt 0:00:06]} d5 {[%emt 0:00:15]} 3. Bg2 {[%emt 0:00:06]} Bf5 {[%emt 0:00:28]} 4. O-O {[%emt 0:00:20]} e6 {[%emt 0:00:16]} 5. d3 {[%emt 0:00:53]} Be7 {[%emt 0:00:27]} 6. c4 {[%emt 0:00:37]} c6 {[%emt 1:31:57]} 7. cxd5 {[%emt 0:00:10]} exd5 {[%emt 0:00:00]} 8. Nc3 {[%emt 0:00:11]} O-O {[%emt 0:00:00]} 9. Qb3 {[%emt 0:01:16] A11: English Opening: 1...c6.} (9. Nd4 $5 {[%cal Rd4f5]} Bg6 10. e4 $11) 9... Qb6 {[%emt 0:00:00]} 10. Qc2 {[%emt 0:00:05]} h6 {[%emt 0:00:00]} 11. e4 {[%emt 0:02:03] White is slightly better.} Bh7 {[%emt 0:00:00]} 12. Be3 {[%emt 0:02:27]} Qd8 13. Qb3 {[%emt 0:00:30]} dxe4 14. dxe4 {[%emt 0:00:30][%cal Bd3e4,Be4e5][%mdl 32]} (14. Qxb7 exf3 15. Qxa8 fxg2 16. Kxg2 Bxd3 $19) 14... Qc8 {[#]} (14... Qc7 $14) 15. e5 $146 {[%emt 0:00:30]} ({Predecessor:} 15. Ne5 Na6 16. f3 Nc7 17. Nd3 b6 18. Ne5 c5 19. Nc6 Re8 20. Nxe7+ Rxe7 21. Rad1 {1-0 Ruiz Bellon,M (1916)-Clavero Alarcon,J (1824) Madrid Chamartin op 6th 2017 (7)}) 15... Ne4 16. Nxe4 {[%emt 0:00:30]} (16. e6 $16) 16... Bxe4 $11 17. Nd4 {[%emt 0:00:30]} ({Better is} 17. Rad1 $14) 17... Bxg2 18. Kxg2 {[%emt 0:00:30]} Na6 (18... c5 $5 {[%cal Rc5d4]} 19. Rac1 Nc6 20. Nxc6 Qxc6+ 21. Kg1 b6 $11) 19. f4 {[%emt 0:00:30][%cal Bf2f4,Bf4f5][%mdl 32]} Bc5 20. f5 {[%emt 0:00:30] And now f6 would win.} Bxd4 (20... Rd8 {feels hotter.} 21. e6 Rxd4 22. exf7+ Kf8) 21. Bxd4 {[%emt 0:00:30] Hoping for e6.} Nc7 {Black is weak on the dark squares} 22. Bc5 {[%emt 0:00:30]} Re8 23. e6 {[%emt 0:00:30]} f6 (23... Nd5 $1 $11 {keeps the balance.}) 24. g4 {[%emt 0:00:30] White has more active pieces.} Nd5 25. h4 {[%emt 0:00:30]} Qc7 26. Rae1 {[%emt 0:00:30]} Rad8 {[#] aiming for ...Nf4+.} 27. Kh1 {[%emt 0:00:30]} (27. Bxa7 $2 b6 28. Bxb6 (28. e7 $2 Ra8 $19) 28... Nxb6 $19) (27. e7 Rd7 $15) 27... Qa5 (27... b6 $5 {[%cal Rb6c5]} 28. Bg1 (28. e7 Rd7 $17) 28... c5 $14) 28. Bg1 {[%emt 0:00:30]} Nb6 (28... Ne7 $11 {remains equal.}) 29. Rd1 $16 {[%emt 0:00:30] Rxd8 would be deadly.} Qe5 $2 {[%mdl 8192] This move loses the game for Black.} (29... Nd5 $16) 30. Rfe1 $18 {[%emt 0:00:30]} (30. Bxb6 Rxd1 31. Rxd1 axb6 $11) 30... Qb8 31. e7+ {[%emt 0:00:30][%mdl 64] [#] Discovered Attack} Rd5 32. Bxb6 {[%emt 0:00:30]} axb6 33. Rxd5 {[%emt 0:00:30]} cxd5 34. Qxd5+ {[%emt 0:00:30][%mdl 4096] Endgame KQR-KQR} Kh8 $2 (34... Kh7 35. Qf7 Qc8) 35. Kg2 $2 {[%emt 0:00:30]} (35. Qd7 {[%cal Og4g5] Black must now prevent g5!} b5 36. g5) 35... Qc7 $2 (35... Qf4 36. Re4 (36. Qxb7 Qxg4+ 37. Kf2 Qxh4+ 38. Kf1 Qf4+ 39. Kg1 Qg3+ 40. Kf1 Qf4+ 41. Kg1 Qd4+ 42. Kf1 Qf4+ $15) 36... Qc7) 36. Qe4 {[%emt 0:00:30]} Qd6 37. Re2 {[%emt 0:00:30]} ({Stronger than} 37. Qxb7 Qd2+ 38. Kf1 Qf4+ 39. Kg1 Qg3+ 40. Kf1 Qf4+ 41. Kg1 Qg3+ 42. Kf1 Qf4+ $11) 37... Qd1 (37... Qd7 $142 38. b3 Kg8) 38. g5 {[%emt 0:00:30] White is clearly winning.} fxg5 39. hxg5 {[%emt 0:00:30]} hxg5 40. Re1 {[%emt 0:00:30]} Qd2+ 41. Kg3 {[%emt 0:00:30]} (41. Kh3 $142 Qf4 42. Qxf4 (42. Qxb7 $2 {too greedy.} Qh4+ 43. Kg2 Qxe1 $19) 42... gxf4 43. Kg4) 41... Qf4+ 42. Qxf4 {[%emt 0:00:30]} gxf4+ 43. Kxf4 {[%emt 0:00:30] KR-KR} Kg8 44. Re6 {[%emt 0:00:30]} Kf7 45. Rxb6 {[%emt 0:00:30]} Rxe7 46. Kg5 {[%emt 0:00:30]} Rc7 47. a4 {[%emt 0:00:30][%cal Ba2a4,Ba4a5][%mdl 32]} Rd7 48. a5 {[%emt 0:00:30]} Rc7 49. b4 {[%emt 0:00:30][%cal Bb2b4,Bb4b5][%mdl 32]} Rd7 50. b5 {[%emt 0:00:30] Weighted Error Value: White=0.38/Black=0.40} 1-0

[Event "1000GM Memorial Day NY IM-C 2023"]
[Site "New York"]
[Date "2023.05.30"]
[Round "9.2"]
[White "Poliannikov, Danila"]
[Black "Reiss, Aiden"]
[Result "1-0"]
[ECO "B56"]
[WhiteElo "2278"]
[BlackElo "2138"]
[Annotator "TA"]
[PlyCount "119"]
[EventDate "2023.05.23"]
[EventType "tourn"]
[EventCountry "USA"]
[SourceTitle "playchess.com"]
[Source "ChessBase"]
[SourceQuality "1"]
[TimeControl "5400+30"]

{[%evp 23,119,-16,0,-24,-15,-20,-12,-12,-14,-6,-11,-20,-25,-25,-25,-16,0,-14,0,0,0,-10,0,0,0,4,0,0,0,0,0,-10,-13,-47,0,0,0,0,0,0,24,22,22,7,36,13,78,78,78,78,98,95,95,112,198,195,202,185,228,190,214,203,283,292,289,273,364,361,347,340,367,405,343,363,351,336,322,284,320,0,295,260,439,435,431,397,343,349,355,352,303,272,514,501,520,500,1643,1633]} 1. e4 c5 2. Nf3 d6 3. d4 cxd4 4. Nxd4 Nf6 5. Nc3 Nc6 6. Be3 Ng4 7. Bb5 Nxe3 8. fxe3 Bd7 9. O-O e6 10. Bxc6 bxc6 11. e5 Be7 12. exd6 Bxd6 13. Qh5 {[%csl Gf1][%cal Rh5f7] B56: Classical Sicilian: Unusual Lines.} O-O 14. Rad1 Qc7 15. Ne4 {The position is equal.} Be7 16. Ng5 $132 {[%mdl 2048] White is not holding back} Bxg5 17. Qxg5 c5 18. Nf3 Bb5 19. Rf2 Rad8 (19... h6 $5 {[%cal Rh6g5]} 20. Qf4 Rad8 21. Rxd8 Rxd8 $11) 20. Rdd2 Rxd2 21. Rxd2 {[#]} Bc4 $146 ({Predecessor:} 21... f6 22. Qg4 Qe7 23. c3 a5 24. h4 h6 25. h5 Be8 26. Nh4 f5 27. Ng6 Bxg6 28. Qxg6 a4 29. a3 {½-½ Fagerbekk,E (2243)-Rauduve,A (2330) W-ch38 prel15 email 2014}) 22. Qe5 ({Much weaker is} 22. Qh4 Bxa2 23. b3 c4 24. Qxc4 Qxc4 25. bxc4 Bxc4 $17) 22... Qa5 23. b3 Bd5 {Threatens to win with ...Bxf3.} 24. e4 Ba8 25. c4 Qa3 26. Kf2 h6 27. h3 a5 28. Re2 Qb4 (28... a4 $1 $15 {should be considered.}) 29. Ne1 $11 {[%cal Bf3e1,Be1d3,Bd3f4][%mdl 32]} Qb6 {[%cal Oa5a4]} 30. Nd3 Rc8 31. Nf4 Qc7 32. Qxc7 Rxc7 {[%mdl 4096] Endgame KRB-KRN} 33. Ke3 Kf8 34. e5 g6 (34... Ke7 $11 {remains equal.}) 35. Rd2 $16 {Black is on the road to losing.} Ke7 {Wards off Rd8} 36. g3 Rc6 {Repels Rd6} 37. h4 h5 38. Nd3 {White has more active pieces.} Bb7 {[#]} (38... Rc8 $16 {is a better defense.}) 39. Nb2 $1 $18 Bc8 {[#]} 40. Na4 $1 Bb7 41. Rd1 Bc8 42. Nc3 Ba6 43. Ne4 {Strongly threatening Rd6.} Bb7 44. Rd6 {And now Rxc6 would win.} Rc7 45. Nf6 Bc6 46. Kf4 Rc8 47. Kg5 Rc7 48. Kh6 Rc8 49. Kg7 Rc7 50. Ng8+ Ke8 51. Nf6+ Ke7 52. Rd2 a4 $2 (52... Ra7 {was worth a try.} 53. Rf2 Rb7) 53. bxa4 Ra7 54. Rb2 Rxa4 55. Rb6 Bf3 56. Rd6 {[%csl Gf6][%cal Rd6d7]} Ra7 {Inhibits Rd7+.} 57. a4 Be2 $2 (57... Rxa4 $2 58. Rd7#) (57... Ba8 58. Rb6 Rxa4) 58. Rc6 {White threatens Rc8 and mate. White is clearly winning.} Bf3 59. Rxc5 {Rc8 would be deadly.} Rxa4 (59... Bd1 $142 60. Rc8 Bxa4) 60. Rc8 {Weighted Error Value: White=0.10 (very precise) /Black=0.23 (precise)} 1-0